fUSD/lending_fUSD_20260529
["ID","MTS","AMOUNT","RATE_DAILY","PERIOD"]
[423359594,1780066964000,-2765.564,0.000391,120]
[423359599,1780066964000,-2051.57,0.000391,60]
[423359619,1780066965000,-1853.156218,0.000392,45]
[423359620,1780066965000,-3161.4796896,0.000392,120]
[423359617,1780066965000,-502.23541788,0.00039178,120]
[423359616,1780066965000,-500.0,0.00039178,120]
[423359614,1780066965000,-4000.0,0.00039178,60]
[423359613,1780066965000,-500.0,0.0003912,120]
[423359611,1780066965000,-596.66,0.000391,120]
[423359615,1780066965000,-500.0,0.00039178,120]
[423359609,1780066965000,-1463.99,0.000391,120]
[423359610,1780066965000,-2965.95,0.000391,120]
[423359608,1780066965000,-810.68,0.000391,120]
[423359621,1780066965000,-1000.0,0.000392,30]
[423359612,1780066965000,-188.88,0.00039117,60]
[423359622,1780066965000,-189.96,0.00039209,120]
[423359618,1780066965000,-500.0,0.000392,120]
[423359624,1780066965000,-160.43,0.00039209,120]
[423359638,1780066965000,-714.04,0.00039276,30]
[423359635,1780066965000,-162.55,0.00039276,30]
[423359636,1780066965000,-150.02,0.00039276,30]
[423359634,1780066965000,-150.0,0.00039264,120]
[423359632,1780066965000,-9180.26,0.00039243,120]
[423359630,1780066965000,-229.25,0.00039209,120]
[423359633,1780066965000,-1141.36,0.00039243,120]
[423359623,1780066965000,-189.97,0.00039209,120]
[423359628,1780066965000,-573.12,0.00039209,120]
[423359629,1780066965000,-154.36,0.00039209,120]
[423359637,1780066965000,-1284.02,0.00039276,30]
[423359627,1780066965000,-306.22,0.00039209,120]
[423359626,1780066965000,-356.52,0.00039209,120]
[423359625,1780066965000,-160.45,0.00039209,120]
[423359631,1780066965000,-2000.0,0.00039221,120]
[423359653,1780066966000,-434.43,0.00039276,30]
[423359651,1780066966000,-1434.41,0.00039276,30]
[423359652,1780066966000,-353.42,0.00039276,30]
[423359647,1780066966000,-2000.0,0.00039276,30]
[423359649,1780066966000,-2000.0,0.00039276,30]
[423359648,1780066966000,-2000.0,0.00039276,30]
[423359650,1780066966000,-1621.45,0.00039276,30]
[423359644,1780066966000,-940.14,0.00039276,30]
[423359645,1780066966000,-156.75,0.00039276,30]
[423359643,1780066966000,-1226.66,0.00039276,30]
[423359640,1780066966000,-654.0,0.00039276,30]
[423359642,1780066966000,-565.74,0.00039276,30]
[423359641,1780066966000,-294.24,0.00039276,30]
[423359654,1780066966000,-249.49,0.00039276,30]
[423359646,1780066966000,-2000.0,0.00039276,30]
[423359639,1780066966000,-513.08,0.00039276,30]
[423359655,1780066966000,-638.43,0.00039276,30]
[423359659,1780066966000,-272.79,0.00039276,30]
[423359656,1780066966000,-297.26,0.00039276,30]
[423359670,1780066966000,-215.35630956,0.00039283,120]
[423359667,1780066966000,-218.4009981,0.00039283,120]
[423359669,1780066966000,-219.54477341,0.00039283,120]
[423359668,1780066966000,-220.41134697,0.00039283,120]
[423359666,1780066966000,-219.32516289,0.00039283,120]
[423359665,1780066966000,-795.85,0.00039276,30]
[423359671,1780066966000,-218.92004967,0.00039283,120]
[423359664,1780066966000,-2000.0,0.00039276,30]
[423359662,1780066966000,-198.07,0.00039276,30]
[423359661,1780066966000,-230.04,0.00039276,30]
[423359658,1780066966000,-182.02,0.00039276,30]
[423359657,1780066966000,-343.72,0.00039276,30]
[423359660,1780066966000,-270.64,0.00039276,30]
[423359663,1780066966000,-2000.0,0.00039276,30]
[423359683,1780066967000,-918.6494,0.00039298,90]
[423359682,1780066967000,-918.6494,0.00039298,90]
[423359681,1780066967000,-918.6494,0.00039298,90]
[423359680,1780066967000,-918.6494,0.00039298,90]
[423359679,1780066967000,-918.6494,0.00039298,90]
[423359676,1780066967000,-918.6494,0.00039298,90]
[423359675,1780066967000,-918.6494,0.00039298,90]
[423359678,1780066967000,-918.6494,0.00039298,90]
[423359673,1780066967000,-918.6494,0.00039298,90]
[423359674,1780066967000,-918.6494,0.00039298,90]
[423359672,1780066967000,-215.19146541,0.00039283,120]
[423359684,1780066967000,-918.6494,0.00039298,90]
[423359677,1780066967000,-918.6494,0.00039298,90]
[423359685,1780066967000,-918.6494,0.00039298,90]
[423359688,1780066967000,-918.6494,0.00039298,90]
[423359687,1780066967000,-918.6494,0.00039298,90]
[423359686,1780066967000,-918.6494,0.00039298,90]
[423359698,1780066967000,-858.1169,0.00039298,90]
[423359697,1780066967000,-858.1169,0.00039298,90]
[423359696,1780066967000,-858.1169,0.00039298,90]
[423359695,1780066967000,-858.1169,0.00039298,90]
[423359694,1780066967000,-858.1169,0.00039298,90]
[423359699,1780066967000,-858.1169,0.00039298,90]
[423359693,1780066967000,-858.1169,0.00039298,90]
[423359690,1780066967000,-918.6494,0.00039298,90]
[423359691,1780066967000,-918.6494,0.00039298,90]
[423359689,1780066967000,-918.6494,0.00039298,90]
[423359700,1780066967000,-858.1169,0.00039298,90]
[423359692,1780066967000,-918.65120404,0.00039298,90]
[423359709,1780066968000,-858.1169,0.00039298,90]
[423359710,1780066968000,-858.1169,0.00039298,90]
[423359706,1780066968000,-858.1169,0.00039298,90]
[423359707,1780066968000,-858.1169,0.00039298,90]
[423359703,1780066968000,-858.1169,0.00039298,90]
[423359704,1780066968000,-858.1169,0.00039298,90]
[423359702,1780066968000,-858.1169,0.00039298,90]
[423359701,1780066968000,-858.1169,0.00039298,90]
[423359708,1780066968000,-858.1169,0.00039298,90]
[423359705,1780066968000,-858.1169,0.00039298,90]
[423359712,1780066968000,-858.11762473,0.00039298,90]
[423359711,1780066968000,-858.1169,0.00039298,90]
[423359713,1780066968000,-12475.3333,0.000393,30]
[423359724,1780066968000,-2311.5786,0.000393,30]
[423359721,1780066968000,-1513.138,0.000393,120]
[423359722,1780066968000,-1513.13,0.000393,120]
[423359718,1780066968000,-2152.085,0.000393,120]
[423359720,1780066968000,-2152.08,0.000393,120]
[423359723,1780066968000,-1110.2186,0.000393,120]
[423359719,1780066968000,-2152.085,0.000393,120]
[423359716,1780066968000,-205.2102063,0.000393,120]
[423359715,1780066968000,-207.7915052,0.000393,120]
[423359714,1780066968000,-218.99776094,0.000393,60]
[423359717,1780066968000,-1110.2186,0.000393,120]
[423359731,1780066969000,-2152.08,0.000393,60]
[423359737,1780066969000,-2062.92,0.000393,120]
[423359734,1780066969000,-1547.19,0.000393,120]
[423359733,1780066969000,-1547.194,0.000393,120]
[423359732,1780066969000,-1547.194,0.000393,120]
[423359725,1780066969000,-1789.3971,0.000393,60]
[423359727,1780066969000,-2062.921,0.000393,120]
[423359729,1780066969000,-2152.085,0.000393,60]
[423359728,1780066969000,-2062.92,0.000393,120]
[423359736,1780066969000,-2062.921,0.000393,120]
[423359726,1780066969000,-2062.921,0.000393,120]
[423359730,1780066969000,-2152.085,0.000393,60]
[423359738,1780066969000,-2152.085,0.000393,60]
[423359735,1780066969000,-2062.921,0.000393,120]
[423359740,1780066969000,-2152.08,0.000393,60]
[423359752,1780066969000,-1209.44,0.000393,120]
[423359750,1780066969000,-1209.444,0.000393,120]
[423359751,1780066969000,-1209.444,0.000393,120]
[423359749,1780066969000,-2015.6,0.000393,31]
[423359746,1780066969000,-1817.59,0.000393,60]
[423359748,1780066969000,-204.29393187,0.000393,60]
[423359739,1780066969000,-2152.085,0.000393,60]
[423359745,1780066969000,-1817.59,0.000393,60]
[423359744,1780066969000,-1817.59,0.000393,60]
[423359743,1780066969000,-2345.82,0.000393,120]
[423359741,1780066969000,-2345.826,0.000393,120]
[423359742,1780066969000,-2345.826,0.000393,120]
[423359747,1780066969000,-243.0,0.000393,120]
[423359765,1780066970000,-1077.23,0.00039328,120]
[423359764,1780066970000,-1077.23,0.00039328,120]
[423359761,1780066970000,-1077.23,0.00039328,120]
[423359763,1780066970000,-1077.23,0.00039328,120]
[423359762,1780066970000,-1077.23,0.00039328,120]
[423359760,1780066970000,-1077.23,0.00039328,120]
[423359756,1780066970000,-300.0,0.00039314,30]
[423359759,1780066970000,-4996.75572683,0.0003932,30]
[423359755,1780066970000,-150.0,0.00039302,120]
[423359757,1780066970000,-422.61,0.00039314,30]
[423359753,1780066970000,-173.11414136,0.000393,30]
[423359766,1780066970000,-1077.23,0.00039328,120]
[423359758,1780066970000,-8717.03986432,0.00039315,60]
[423359754,1780066970000,-175.76937218,0.000393,30]
[423359767,1780066970000,-1077.23,0.00039328,120]
[423359770,1780066970000,-1077.23,0.00039328,120]
[423359768,1780066970000,-564.1,0.00039328,120]
[423359783,1780066970000,-211.86,0.00039367,30]
[423359782,1780066970000,-265.07748791,0.00039367,120]
[423359781,1780066970000,-2000.0,0.00039366,120]
[423359780,1780066970000,-962.73,0.00039357,120]
[423359777,1780066970000,-226.97800515,0.00039348,120]
[423359778,1780066970000,-226.97800514,0.00039348,120]
[423359779,1780066970000,-962.73,0.00039357,120]
[423359775,1780066970000,-4819.0,0.00039331,120]
[423359774,1780066970000,-1077.23,0.00039328,120]
[423359772,1780066970000,-1077.23,0.00039328,120]
[423359773,1780066970000,-1077.23,0.00039328,120]
[423359771,1780066970000,-1077.23,0.00039328,120]
[423359769,1780066970000,-1077.23,0.00039328,120]
[423359776,1780066970000,-418.01477293,0.00039348,120]
[423359792,1780066971000,-401.7090099,0.00039386,120]
[423359796,1780066971000,-150.0,0.00039387,120]
[423359797,1780066971000,-226.0,0.00039387,120]
[423359793,1780066971000,-200.85450494,0.00039386,120]
[423359794,1780066971000,-200.85450493,0.00039386,120]
[423359789,1780066971000,-231.17633144,0.00039386,120]
[423359795,1780066971000,-150.0,0.00039387,120]
[423359791,1780066971000,-167.29240016,0.00039386,120]
[423359787,1780066971000,-231.17633146,0.00039386,120]
[423359788,1780066971000,-160.17728774,0.00039386,120]
[423359786,1780066971000,-241.00065555,0.00039386,120]
[423359785,1780066971000,-160.17728776,0.00039386,120]
[423359784,1780066971000,-4819.0,0.00039381,120]
[423359790,1780066971000,-159.74079616,0.00039386,120]
[423359798,1780066971000,-226.0,0.00039387,120]
[423359805,1780066971000,-500.0,0.00039396,30]
[423359800,1780066971000,-500.0,0.00039396,30]
[423359812,1780066971000,-1000.0,0.00039452,30]
[423359813,1780066971000,-1000.0,0.00039452,30]
[423359811,1780066971000,-234.52,0.00039452,120]
[423359810,1780066971000,-4819.0,0.00039431,120]
[423359808,1780066971000,-3777.21342652,0.000394,120]
[423359809,1780066971000,-150.0,0.00039404,120]
[423359801,1780066971000,-300.0,0.00039396,30]
[423359806,1780066971000,-28690.1067804,0.000394,30]
[423359814,1780066971000,-1000.0,0.00039452,30]
[423359803,1780066971000,-300.0,0.00039396,30]
[423359802,1780066971000,-300.0,0.00039396,30]
[423359804,1780066971000,-500.0,0.00039396,30]
[423359799,1780066971000,-500.0,0.00039396,30]
[423359807,1780066971000,-1475.96411568,0.000394,120]
[423359825,1780066972000,-1000.0,0.00039452,30]
[423359826,1780066972000,-1000.0,0.00039452,30]
[423359824,1780066972000,-1000.0,0.00039452,30]
[423359821,1780066972000,-1000.0,0.00039452,30]
[423359822,1780066972000,-1000.0,0.00039452,30]
[423359820,1780066972000,-1000.0,0.00039452,30]
[423359818,1780066972000,-1000.0,0.00039452,30]
[423359819,1780066972000,-1000.0,0.00039452,30]
[423359828,1780066972000,-1000.0,0.00039452,30]
[423359817,1780066972000,-1000.0,0.00039452,30]
[423359816,1780066972000,-1000.0,0.00039452,30]
[423359815,1780066972000,-1000.0,0.00039452,30]
[423359823,1780066972000,-1000.0,0.00039452,30]
[423359829,1780066972000,-1000.0,0.00039452,30]
[423359827,1780066972000,-1000.0,0.00039452,30]
[423359832,1780066972000,-1000.0,0.00039452,30]
[423359843,1780066972000,-300.0,0.00039496,30]
[423359844,1780066972000,-300.0,0.00039496,30]
[423359831,1780066972000,-1000.0,0.00039452,30]
[423359839,1780066972000,-4819.0,0.00039481,120]
[423359840,1780066972000,-400.59857603,0.00039483,120]
[423359841,1780066972000,-500.0,0.00039496,30]
[423359838,1780066972000,-150.0,0.0003948,120]
[423359842,1780066972000,-500.0,0.00039496,30]
[423359836,1780066972000,-21338.79126011,0.00039476,30]
[423359835,1780066972000,-5660.15952642,0.00039475,120]
[423359833,1780066972000,-1039.868958,0.00039452,30]
[423359834,1780066972000,-2763.4,0.0003947,120]
[423359830,1780066972000,-1000.0,0.00039452,30]
[423359837,1780066972000,-150.0,0.00039479,120]
[423359845,1780066973000,-500.0,0.00039496,30]
[423359846,1780066973000,-500.0,0.00039496,30]
[423359847,1780066973000,-1597.5928327,0.000395,120]
[423359849,1780066973000,-2169.6581856,0.000395,120]
[423359848,1780066973000,-2000.0,0.000395,75]
[423359850,1780066973000,-1740.38202905,0.000395,120]
[423359852,1780066973000,-2142.764504,0.000395,120]
[423359851,1780066973000,-762.30919635,0.000395,30]
[423359854,1780066973000,-5000.0,0.000395,100]
[423359855,1780066973000,-475.58448392,0.000395,120]
[423359853,1780066973000,-5999.99999901,0.000395,30]
[423359856,1780066973000,-3395.07795585,0.000395,120]
[423359858,1780066973000,-5000.0,0.000395,90]
[423359859,1780066973000,-4122.957592,0.000395,90]
[423359860,1780066973000,-1000.0,0.000395,30]
[423359862,1780066973000,-5846.40268762,0.000395,120]
[423359861,1780066973000,-1507.44640822,0.000395,120]
[423359863,1780066973000,-999.0,0.00039506,120]
[423359864,1780066973000,-999.0,0.00039506,120]
[423359866,1780066973000,-999.0,0.00039506,120]
[423359865,1780066973000,-999.0,0.00039506,120]
[423359857,1780066973000,-1000.0,0.000395,120]
[423359875,1780066974000,-515.36,0.00039524,30]
[423359873,1780066974000,-600.16,0.00039521,30]
[423359874,1780066974000,-900.24,0.00039521,120]
[423359872,1780066974000,-801.66,0.00039512,120]
[423359867,1780066974000,-999.0,0.00039506,120]
[423359870,1780066974000,-2000.0,0.0003951,120]
[423359868,1780066974000,-999.0,0.00039506,120]
[423359869,1780066974000,-326.69817027,0.00039506,120]
[423359877,1780066974000,-643.71911563,0.00039527,30]
[423359871,1780066974000,-534.44,0.00039512,30]
[423359878,1780066974000,-3701.4,0.00039527,120]
[423359876,1780066974000,-773.04,0.00039524,120]
[423359880,1780066974000,-3701.35,0.00039527,120]
[423359879,1780066974000,-3701.35,0.00039527,120]
[423359890,1780066974000,-3701.35,0.00039527,120]
[423359891,1780066974000,-3701.35,0.00039527,120]
[423359887,1780066974000,-3701.35,0.00039527,120]
[423359886,1780066974000,-3701.35,0.00039527,120]
[423359889,1780066974000,-3701.35,0.00039527,120]
[423359885,1780066974000,-3701.35,0.00039527,120]
[423359883,1780066974000,-3701.35,0.00039527,120]
[423359884,1780066974000,-3701.35,0.00039527,120]
[423359882,1780066974000,-3701.35,0.00039527,120]
[423359881,1780066974000,-3701.35,0.00039527,120]
[423359888,1780066974000,-3701.35,0.00039527,120]
[423359901,1780066975000,-1934.38338736,0.00039531,30]
[423359905,1780066975000,-167.10850837,0.00039533,120]
[423359904,1780066975000,-160.17728776,0.00039533,120]
[423359902,1780066975000,-1280.88388877,0.00039532,30]
[423359903,1780066975000,-1865.36488656,0.00039532,30]
[423359900,1780066975000,-1328.27659266,0.00039531,30]
[423359894,1780066975000,-505.52,0.00039527,30]
[423359895,1780066975000,-758.28,0.00039527,120]
[423359896,1780066975000,-1354.12,0.00039527,30]
[423359897,1780066975000,-2031.18,0.00039527,120]
[423359898,1780066975000,-3141.80663518,0.0003953,120]
[423359893,1780066975000,-3701.35,0.00039527,120]
[423359892,1780066975000,-3701.35,0.00039527,120]
[423359899,1780066975000,-4819.0,0.00039531,120]
[423359906,1780066975000,-405.46685995,0.00039533,120]
[423359907,1780066975000,-266.4771556,0.00039533,120]
[423359910,1780066975000,-157.99482978,0.00039533,120]
[423359923,1780066975000,-245.04765188,0.00039533,120]
[423359922,1780066975000,-183.86751181,0.00039533,120]
[423359921,1780066975000,-164.86863656,0.00039533,120]
[423359919,1780066975000,-164.86863657,0.00039533,120]
[423359920,1780066975000,-167.13997413,0.00039533,120]
[423359918,1780066975000,-164.85263737,0.00039533,120]
[423359917,1780066975000,-219.32642013,0.00039533,120]
[423359908,1780066975000,-502.27314874,0.00039533,120]
[423359914,1780066975000,-219.32642016,0.00039533,120]
[423359916,1780066975000,-160.17728774,0.00039533,120]
[423359912,1780066975000,-210.90732829,0.00039533,120]
[423359911,1780066975000,-152.00282699,0.00039533,120]
[423359913,1780066975000,-160.17728776,0.00039533,120]
[423359909,1780066975000,-1331.01513864,0.00039533,120]
[423359915,1780066975000,-498.70018951,0.00039533,120]
[423359937,1780066976000,-201.96,0.00039536,120]
[423359933,1780066976000,-165.07806374,0.00039533,120]
[423359934,1780066976000,-252.01073835,0.00039533,120]
[423359935,1780066976000,-272.44,0.00039535,30]
[423359931,1780066976000,-165.07806375,0.00039533,120]
[423359930,1780066976000,-217.76483017,0.00039533,120]
[423359928,1780066976000,-217.76483017,0.00039533,120]
[423359929,1780066976000,-164.23035426,0.00039533,120]
[423359927,1780066976000,-164.23035427,0.00039533,120]
[423359926,1780066976000,-257.48176966,0.00039533,120]
[423359924,1780066976000,-245.04765184,0.00039533,120]
[423359925,1780066976000,-164.58389015,0.00039533,120]
[423359938,1780066976000,-150.332008,0.00039537,34]
[423359932,1780066976000,-252.01073836,0.00039533,120]
[423359936,1780066976000,-408.66,0.00039535,120]
[423359942,1780066976000,-1682.0,0.00039552,120]
[423359941,1780066976000,-497.6,0.0003955,120]
[423359954,1780066976000,-4858.73502719,0.00039563,45]
[423359955,1780066976000,-1333.34,0.00039563,30]
[423359953,1780066976000,-4858.73502718,0.00039563,45]
[423359939,1780066976000,-453.03054581,0.0003955,120]
[423359951,1780066976000,-4858.73502718,0.00039563,45]
[423359950,1780066976000,-174.19642121,0.00039562,30]
[423359949,1780066976000,-280.0,0.00039562,30]
[423359952,1780066976000,-4858.73502718,0.00039563,45]
[423359946,1780066976000,-280.0,0.00039562,30]
[423359947,1780066976000,-280.0,0.00039562,30]
[423359944,1780066976000,-2717.76388848,0.00039562,120]
[423359945,1780066976000,-280.0,0.00039562,30]
[423359943,1780066976000,-480.0,0.00039552,120]
[423359940,1780066976000,-331.73,0.0003955,30]
[423359948,1780066976000,-280.0,0.00039562,30]
[423359962,1780066977000,-3100.0,0.00039575,120]
[423359956,1780066977000,-2000.01,0.00039563,120]
[423359957,1780066977000,-150.0,0.00039568,120]
[423359958,1780066977000,-50000.0,0.00039575,66]
[423359960,1780066977000,-3100.0,0.00039575,120]
[423359959,1780066977000,-528.65333831,0.00039575,120]
[423359961,1780066977000,-3100.0,0.00039575,120]
[423359963,1780066977000,-710.1427282,0.00039575,120]
[423359965,1780066977000,-500.0,0.00039575,120]
[423359967,1780066977000,-500.0,0.00039575,120]
[423359966,1780066977000,-500.0,0.00039575,120]
[423359969,1780066977000,-500.0,0.00039575,120]
[423359968,1780066977000,-500.0,0.00039575,120]
[423359971,1780066977000,-500.0,0.00039575,120]
[423359973,1780066977000,-500.0,0.00039575,120]
[423359972,1780066977000,-500.0,0.00039575,120]
[423359970,1780066977000,-500.0,0.00039575,120]
[423359974,1780066977000,-500.0,0.00039575,120]
[423359975,1780066977000,-500.0,0.00039575,120]
[423359964,1780066977000,-500.0,0.00039575,120]
[423359986,1780066978000,-3100.0,0.00039575,120]
[423359985,1780066978000,-671.49528998,0.00039575,120]
[423359984,1780066978000,-3100.0,0.00039575,120]
[423359982,1780066978000,-500.0,0.00039575,120]
[423359983,1780066978000,-585.45073798,0.00039575,120]
[423359977,1780066978000,-500.0,0.00039575,120]
[423359980,1780066978000,-566.02273595,0.00039575,120]
[423359979,1780066978000,-500.0,0.00039575,120]
[423359978,1780066978000,-500.0,0.00039575,120]
[423359976,1780066978000,-500.0,0.00039575,120]
[423359981,1780066978000,-500.0,0.00039575,120]
[423359987,1780066978000,-3100.0,0.00039575,120]
[423359989,1780066978000,-3100.0,0.00039575,120]
[423359991,1780066978000,-3100.0,0.00039575,120]
[423359988,1780066978000,-3100.0,0.00039575,120]
[423360002,1780066978000,-3100.0,0.00039575,120]
[423360003,1780066978000,-3100.0,0.00039575,120]
[423360001,1780066978000,-3100.0,0.00039575,120]
[423359999,1780066978000,-3100.0,0.00039575,120]
[423359998,1780066978000,-3100.0,0.00039575,120]
[423360000,1780066978000,-3100.0,0.00039575,120]
[423359996,1780066978000,-3100.0,0.00039575,120]
[423359995,1780066978000,-3100.0,0.00039575,120]
[423359994,1780066978000,-3100.0,0.00039575,120]
[423359993,1780066978000,-3100.0,0.00039575,120]
[423359992,1780066978000,-3100.0,0.00039575,120]
[423359997,1780066978000,-3100.0,0.00039575,120]
[423360011,1780066979000,-3100.0,0.00039575,120]
[423360013,1780066979000,-3100.0,0.00039575,120]
[423360014,1780066979000,-3100.0,0.00039575,120]
[423360016,1780066979000,-3100.0,0.00039575,120]
[423360012,1780066979000,-3100.0,0.00039575,120]
[423360004,1780066979000,-3100.0,0.00039575,120]
[423360010,1780066979000,-3100.0,0.00039575,120]
[423360008,1780066979000,-3100.0,0.00039575,120]
[423360007,1780066979000,-3100.0,0.00039575,120]
[423360006,1780066979000,-3100.0,0.00039575,120]
[423360005,1780066979000,-3100.0,0.00039575,120]
[423360009,1780066979000,-3100.0,0.00039575,120]
[423360017,1780066979000,-3100.0,0.00039575,120]
[423360015,1780066979000,-3100.0,0.00039575,120]
[423360021,1780066979000,-3100.0,0.00039575,120]
[423360032,1780066979000,-500.0,0.00039575,120]
[423360031,1780066979000,-435.01616786,0.00039575,120]
[423360030,1780066979000,-3100.0,0.00039575,120]
[423360029,1780066979000,-3100.0,0.00039575,120]
[423360028,1780066979000,-3100.0,0.00039575,120]
[423360027,1780066979000,-3100.0,0.00039575,120]
[423360018,1780066979000,-3100.0,0.00039575,120]
[423360026,1780066979000,-3100.0,0.00039575,120]
[423360019,1780066979000,-3100.0,0.00039575,120]
[423360020,1780066979000,-3100.0,0.00039575,120]
[423360025,1780066979000,-3100.0,0.00039575,120]
[423360022,1780066979000,-3100.0,0.00039575,120]
[423360024,1780066979000,-3100.0,0.00039575,120]
[423360023,1780066979000,-3100.0,0.00039575,120]
[423360033,1780066980000,-500.0,0.00039575,120]
[423360036,1780066980000,-600.0,0.00039575,120]
[423360035,1780066980000,-600.0,0.00039575,120]
[423360034,1780066980000,-531.76519931,0.00039575,120]
[423360039,1780066980000,-600.0,0.00039575,120]
[423360037,1780066980000,-600.0,0.00039575,120]
[423360038,1780066980000,-600.0,0.00039575,120]
[423360040,1780066980000,-600.0,0.00039575,120]
[423360042,1780066980000,-600.0,0.00039575,120]
[423360043,1780066980000,-600.0,0.00039575,120]
[423360044,1780066980000,-600.0,0.00039575,120]
[423360045,1780066980000,-600.0,0.00039575,120]
[423360047,1780066980000,-600.0,0.00039575,120]
[423360041,1780066980000,-600.0,0.00039575,120]
[423360048,1780066980000,-600.0,0.00039575,120]
[423360046,1780066980000,-600.0,0.00039575,120]
[423360059,1780066980000,-600.0,0.00039575,120]
[423360060,1780066980000,-600.0,0.00039575,120]
[423360058,1780066980000,-600.0,0.00039575,120]
[423360056,1780066980000,-600.0,0.00039575,120]
[423360057,1780066980000,-600.0,0.00039575,120]
[423360055,1780066980000,-600.0,0.00039575,120]
[423360061,1780066980000,-600.0,0.00039575,120]
[423360052,1780066980000,-600.0,0.00039575,120]
[423360053,1780066980000,-600.0,0.00039575,120]
[423360051,1780066980000,-600.0,0.00039575,120]
[423360050,1780066980000,-600.0,0.00039575,120]
[423360049,1780066980000,-600.0,0.00039575,120]
[423360054,1780066980000,-600.0,0.00039575,120]
[423360075,1780066981000,-600.0,0.00039575,120]
[423360074,1780066981000,-600.0,0.00039575,120]
[423360070,1780066981000,-600.0,0.00039575,120]
[423360071,1780066981000,-600.0,0.00039575,120]
[423360069,1780066981000,-600.0,0.00039575,120]
[423360068,1780066981000,-600.0,0.00039575,120]
[423360064,1780066981000,-600.0,0.00039575,120]
[423360066,1780066981000,-600.0,0.00039575,120]
[423360065,1780066981000,-600.0,0.00039575,120]
[423360063,1780066981000,-600.0,0.00039575,120]
[423360062,1780066981000,-600.0,0.00039575,120]
[423360073,1780066981000,-600.0,0.00039575,120]
[423360067,1780066981000,-600.0,0.00039575,120]
[423360077,1780066981000,-600.0,0.00039575,120]
[423360072,1780066981000,-600.0,0.00039575,120]
[423360078,1780066981000,-600.0,0.00039575,120]
[423360076,1780066981000,-600.0,0.00039575,120]
[423360090,1780066981000,-600.0,0.00039575,120]
[423360089,1780066981000,-600.0,0.00039575,120]
[423360088,1780066981000,-600.0,0.00039575,120]
[423360087,1780066981000,-600.0,0.00039575,120]
[423360086,1780066981000,-600.0,0.00039575,120]
[423360085,1780066981000,-600.0,0.00039575,120]
[423360091,1780066981000,-600.0,0.00039575,120]
[423360083,1780066981000,-600.0,0.00039575,120]
[423360092,1780066981000,-600.0,0.00039575,120]
[423360080,1780066981000,-600.0,0.00039575,120]
[423360081,1780066981000,-600.0,0.00039575,120]
[423360082,1780066981000,-600.0,0.00039575,120]
[423360079,1780066981000,-600.0,0.00039575,120]
[423360084,1780066981000,-600.0,0.00039575,120]
[423360106,1780066982000,-600.0,0.00039575,120]
[423360105,1780066982000,-600.0,0.00039575,120]
[423360103,1780066982000,-600.0,0.00039575,120]
[423360101,1780066982000,-600.0,0.00039575,120]
[423360102,1780066982000,-600.0,0.00039575,120]
[423360099,1780066982000,-600.0,0.00039575,120]
[423360097,1780066982000,-600.0,0.00039575,120]
[423360100,1780066982000,-600.0,0.00039575,120]
[423360095,1780066982000,-600.0,0.00039575,120]
[423360096,1780066982000,-600.0,0.00039575,120]
[423360093,1780066982000,-600.0,0.00039575,120]
[423360094,1780066982000,-600.0,0.00039575,120]
[423360098,1780066982000,-600.0,0.00039575,120]
[423360104,1780066982000,-600.0,0.00039575,120]